Cogmind - Beta 14 @@@ ROGUE MODE // 2024.10.18 @ 17:56:05 Player: buwwet Result: Destroyed by Y-72 Warden with Quantum Rifle Performance ------------- Evolutions (7) 3500 Regions Visited (13) 2600 Robots Destroyed (80) 400 Value Destroyed (2062) 2062 Prototype IDs (8) 160 Alien Tech Used (0) 0 Bonus (96) 96 TOTAL SCORE: 8818 Bonus ------- High Alert Combat Kills 46 Follower Combat Kills 67 Friendly Fire -17 Cogmind --------- Core Integrity 0/1300 Matter 269/300 Energy 100/100 System Corruption 0% Temperature Cool (9) Movement Core (50) Location -3/Research Parts ------- > --- POWER (3) -------- (None) > --- PROPULSION (8) --- (None) > --- UTILITY (8) ------ Advanced Salvage Targeting Computer Core Analyzer > --- WEAPON (2) ------- (None) > --- INVENTORY (5) ---- Improved Deuterium Engine Makeshift Power Source Compact Matter Pod (150) Hacking Suite Improved Arc Projector Peak State ------------ > --- POWER ------------ Light Nuclear Core Light Nuclear Core > --- PROPULSION ------- Armored Medium Treads Improved VTOL Module Improved VTOL Module Xenon Bombardment Thruster Nuclear Pulse Thruster Nuclear Pulse Array > --- UTILITY ---------- Cryofiber Web Advanced Heat Sink Medium Storage Unit Enhanced Optical Array Core Analyzer Core Analyzer Makeshift Weapon Shielding > --- WEAPON ----------- Precision Rocket Launcher Ripper > --- INVENTORY -------- Improved Gravmag System Improved Gyrokinetic Inverter Improved Gyrokinetic Inverter Recoil Stabilizer Disruptor Cannon Heavy Battle Rifle Enhanced Flamer [Rating: 80] Favorites ----------- Power Light Nuclear Core Engine Light Ion Engine Power Core Light Nuclear Core Reactor Light Antimatter Reactor Propulsion Light Treads Treads Light Treads Leg Aluminum Leg Hover Unit Airjet Flight Unit Improved VTOL Module Utility Medium Storage Unit Device Improved Heat Sink Storage Medium Storage Unit Processor Improved Signal Interpreter Hackware System Shield Protection Light Armor Plating Weapon Heavy EM Pulse Gun Energy Gun Heavy EM Pulse Gun Energy Cannon Subdweller Beam Cannon Ballistic Gun Assault Rifle Ballistic Cannon Battle Cannon Launcher Precision Rocket Launcher Special Weapon Enhanced Flamer Impact Weapon Power Maul Slashing Weapon Greatsword Build | -11 -10 -10 -10 -8 -7 -6 -5 -5 -5 -4 -4 -4 -3 ------- Run | Yrd Mat Min Sub Mat Fac Fac Fac Upp Upp Fac Upp Upp Res Slots Evolved 14 | . . . . 4 2 2 2 . . 2 . . 2 Power 2 | . . . . . 1 . 1 . . . . . . Propulsion 6 | . . . . 2 . 1 1 . . 1 . . 1 Utility 6 | . . . . 2 1 1 . . . 1 . . 1 Weapon . | . . . . . . . . . . . . . . Parts Attached 132 | 9 7 6 3 25 27 10 9 9 . 17 1 1 8 Power 22 | 4 1 . 1 4 6 1 2 . . 3 . . . Engine 8 | 4 1 . . 1 2 . . . . . . . . Core 13 | . . . 1 3 4 1 2 . . 2 . . . Reactor 1 | . . . . . . . . . . 1 . . . Propulsion 46 | 2 . 3 . 11 7 5 4 3 . 6 . 1 4 Treads 14 | 1 . 3 . 7 . 1 . 1 . . . 1 . Leg 5 | 1 . . . . . . . . . . . . 4 Wheel . | . . . . . . . . . . . . . . Hover 12 | . . . . 2 1 3 2 . . 4 . . . Flight 15 | . . . . 2 6 1 2 2 . 2 . . . Utility 32 | 1 2 1 1 6 7 4 1 3 . 3 . . 3 Device 15 | . 1 . 1 3 4 4 . 1 . 1 . . . Storage 5 | 1 1 1 . . 1 . . . . . . . 1 Processor 8 | . . . . 2 1 . 1 1 . 1 . . 2 Hackware 1 | . . . . . 1 . . . . . . . . Protection 3 | . . . . 1 . . . 1 . 1 . . . Artifact . | . . . . . . . . . . . . . . Weapon 32 | 2 4 2 1 4 7 . 2 3 . 5 1 . 1 Energy Gun 7 | . 2 1 . 1 2 . . . . . . . 1 Energy Cannon 6 | . 1 . . 2 . . 1 1 . 1 . . . Ballistic Gun 6 | 2 1 . . . . . . . . 2 1 . . Ballistic Cannon 6 | . . . 1 1 3 . 1 . . . . . . Launcher 1 | . . . . . . . . . . 1 . . . Special Weapon 3 | . . 1 . . . . . 1 . 1 . . . Impact Weapon 1 | . . . . . 1 . . . . . . . . Slashing Weapon 2 | . . . . . 1 . . 1 . . . . . Piercing Weapon . | . . . . . . . . . . . . . . Special Melee Weapon . | . . . . . . . . . . . . . . Unidentified Prototypes 8 | . . . . 2 1 1 1 . . 1 . . 2 Parts Lost 57 | . 1 . . 12 1 3 6 4 . 20 3 . 7 Power 12 | . 1 . . 4 . . 2 1 . 4 . . . Propulsion 24 | . . . . 4 1 1 1 3 . 7 2 . 5 Utility 11 | . . . . 3 . 1 2 . . 4 . . 1 Weapon 10 | . . . . 1 . 1 1 . . 5 1 . 1 Highest Loss Streak 23 | . 1 . . 4 1 2 4 4 . 20 23 . 3 To Critical Strikes . | . . . . . . . . . . . . . . Average Slot Usage (%) 86 | . 92 100 99 95 93 92 91 76 82 68 22 23 20 Engine 4 | . 13 14 3 . 4 . . . . . . . . Core 6 | . . . 10 8 8 13 16 7 5 2 . . . Treads 15 | . 14 27 28 29 6 2 5 2 5 2 . 2 1 Leg 1 | . 14 . . . . . . . . . . . 2 Hover 1 | . . . . 1 4 3 . 3 . 3 5 5 2 Flight 8 | . . . . 1 19 26 28 23 23 19 . . . Device 12 | . . 14 14 14 21 20 16 11 11 6 . . . Storage 9 | . 21 14 14 9 2 6 5 5 5 3 . . . Processor 6 | . . . . 9 8 6 11 13 17 13 10 10 11 Energy Gun 7 | . 12 27 18 3 . . . . . . . . . Energy Cannon 2 | . . . . 9 4 . . 1 5 2 . . . Ballistic Gun 2 | . 14 . . . . . . . . 1 3 5 . Ballistic Cannon 2 | . . . 9 4 3 . 4 . . . . . . Peak Build Rating 80 | 6 10 10 12 34 47 55 72 66 66 80 32 22 39 Average Rating 27 | 5 8 9 11 23 39 52 63 57 66 61 21 20 23 On Entrance 30 | . 6 10 10 12 33 45 49 49 66 66 32 20 22 Naked Turns . | . . . . . . . . . . . . . . Heaviest Build 36 | 11 16 20 22 33 33 27 36 29 29 34 3 3 5 Greatest Support 85 | 20 20 40 40 85 66 31 37 29 29 35 4 3 28 Greatest Overweight (x) 3 | . . . . 1 . . . . . 3 . . . Average Overweight (x) . | . . . . . . . . . . . . . . Largest Inventory Capacity 10 | 8 8 10 10 10 10 10 10 10 10 10 5 5 5 Average Capacity 8 | 7 8 8 10 10 6 10 10 10 10 8 5 5 5 Most Carried 10 | 4 8 8 10 10 10 10 8 7 7 7 5 5 5 Average Carried 7 | 3 6 7 9 8 6 9 7 4 7 4 3 4 4 Final Capacity 10 | 8 8 10 10 10 10 10 10 10 10 5 5 5 5 Final Carried 10 | 4 8 8 10 9 7 9 6 7 7 1 4 5 5 Class Distribution -------------------- 59% | Mutant 15% | Scavenger-Mutant 9% | Sprinter 6% | Scavenger-Sprinter 5% | Scout 3% | Derelict-Mutant Dominant Class ---------------- Mutant | -10/Materials Mutant | -10/Mines Mutant | -10/Subcaves Scavenger-Mutant | -8/Materials Scavenger-Sprinter | -7/Factory Sprinter | -6/Factory Scout | -5/Factory Derelict-Mutant | -5/Upper Caves Derelict-Mutant | -5/Upper Caves Derelict-Mutant | -4/Factory Mutant | -4/Upper Caves Mutant | -4/Upper Caves Mutant | -3/Research Resources | -11 -10 -10 -10 -8 -7 -6 -5 -5 -5 -4 -4 -4 -3 ----------- Run | Yrd Mat Min Sub Mat Fac Fac Fac Upp Upp Fac Upp Upp Res Matter Collected 2225 | 186 436 78 81 452 312 69 14 128 . 138 152 162 17 Remotely . | . . . . . . . . . . . . . . Salvage Created 2739 | 28 459 105 46 1014 365 159 46 26 . 348 . 143 . Parts 143 | 6 31 3 4 41 19 9 5 1 . 24 . . . Haulers Intercepted 5 | . . . . 1 3 . . . . 1 . . . Recyclers Shooed 2 | 1 1 . . . . . . . . . . . . Parts Field Recycled . | . . . . . . . . . . . . . . Retrieved Matter . | . . . . . . . . . . . . . . Parts Self-Destructed 7 | . . . 7 . . . . . . . . . . Prevented 3 | . . . . . . . . . . . 3 . . Kills | -11 -10 -10 -10 -8 -7 -6 -5 -5 -5 -4 -4 -4 -3 ------- Run | Yrd Mat Min Sub Mat Fac Fac Fac Upp Upp Fac Upp Upp Res Combat Hostiles Destroyed 48 | . 7 4 1 22 1 1 1 . . 11 . . . Melee 4 | . . . . . 1 1 . . . 2 . . . Guns 14 | . 7 2 1 3 . . . . . 1 . . . Cannons 20 | . . . . 19 . . 1 . . . . . . AOE 10 | . . 2 . . . . . . . 8 . . . Classes Destroyed 15 | 1 5 . 1 4 3 . . . . . . 1 . Worker 8 | . 1 . . 1 5 . . . . 1 . . . Builder 3 | . . . . . 2 . . . . 1 . . . Tunneler 2 | 2 . . . . . . . . . . . . . Hauler 5 | . . . . 1 3 . . . . 1 . . . Recycler 3 | . 2 . . 1 . . . . . . . . . Operator 1 | . . . . . 1 . . . . . . . . Watcher 10 | . 3 . . 2 2 3 . . . . . . . Swarmer 20 | . 3 2 . 6 . . . . . 9 . . . Grunt 17 | . 4 2 . 10 . . . . . 1 . . . Duelist 1 | . . . . 1 . . . . . . . . . Sentry 5 | . . . . 4 . . . . . 1 . . . Hunter 2 | . . . . 1 . 1 . . . . . . . Programmer 2 | . . . . . 1 . 1 . . . . . . Subdweller 1 | . . . 1 . . . . . . . . . . Decomposer 1 | . . . . . . . . 1 . . . . . Packrat 1 | . . . . . . . . . . . . 1 . Samaritan 1 | . . . . . . . . . . . . 1 . Best Kill Streak 13 | 2 3 2 1 4 8 1 1 . . 13 . . . Combat Bots Only 10 | . 3 2 1 4 1 1 1 . . 10 . . . Max Kills in Single Turn 4 | 1 1 2 1 2 1 1 1 1 . 4 . 1 . Gunslinging . | . . . . . . . . . . . . . . Exploded 3 | . . 2 . . . . . . . 3 . . . Melee 1 | . . . . . 1 1 . . . 1 . . . Uniques/NPCs Destroyed . | . . . . . . . . . . . . . . Combat | -11 -10 -10 -10 -8 -7 -6 -5 -5 -5 -4 -4 -4 -3 -------- Run | Yrd Mat Min Sub Mat Fac Fac Fac Upp Upp Fac Upp Upp Res Hostile Shots Fired 750 | . 55 3 3 149 7 25 40 28 . 227 24 . 189 Missed 277 | . 15 . . 41 . 3 19 15 . 91 5 . 88 Damage Taken 8275 | . 467 77 58 1578 119 359 629 214 . 2291 348 . 2135 Core 2575 | . 92 24 . 209 15 36 61 62 . 584 189 . 1303 Absorbed by Shields . | . . . . . . . . . . . . . . Redirected to Shielding 71 | . . . . . . . . . . 64 7 . . Core Remaining (%) 75 | 100 . . 53 62 97 95 . . 87 . . 32 . Volleys Fired 171 | 10 38 7 8 67 5 . 10 . . 10 . 13 3 Largest 2 | 2 2 2 2 2 1 . 1 . . 1 . 1 1 Hottest 145 | 40 90 100 90 145 48 . 57 . . 43 . 28 65 Shots Fired 299 | 20 75 11 18 134 5 . 10 . . 10 . 13 3 Gun 160 | 20 63 8 18 31 . . . . . 4 . 13 3 Cannon 130 | . 12 . . 103 5 . 10 . . . . . . Launcher 6 | . . . . . . . . . . 6 . . . Special 3 | . . 3 . . . . . . . . . . . Kinetic 144 | 20 51 . . 41 5 . 10 . . 4 . 13 . Thermal 77 | . 12 3 . 62 . . . . . . . . . Explosive 6 | . . . . . . . . . . 6 . . . Electromagnetic 72 | . 12 8 18 31 . . . . . . . . 3 Robot Hit Streak 16 | 5 16 6 5 15 3 . 1 . . 8 . 10 . Robot Miss Streak 7 | 1 4 1 1 4 2 . 7 . . . . 1 3 Penetration Max . | . . . . . . . . . . . . . . Secondary Targets 3 | . 2 1 . . . . . . . . . . . Max Gunslinging Chain 1 | . 1 1 . . . . . . . . . . . Shots Hit Robots 222 | 15 46 6 13 86 21 9 1 1 . 14 . 10 . Core Hits 112 | 4 22 5 3 41 4 3 1 1 . 23 . 5 . Critical Kills 1 | . . . . . 1 . . . . . . . . Critical Parts Destroyed 6 | . . . . . 5 . . . . . . 1 . Critical Strikes 11 | . . . . 1 7 1 . . . 1 . 1 . Destroy 1 | . . . . . . . . . . . . 1 . Blast 2 | . . . . 1 1 . . . . . . . . Smash 6 | . . . . . 6 . . . . . . . . Sever 2 | . . . . . . 1 . . . 1 . . . Melee Attacks 60 | . . . . . 38 12 . 1 . 9 . . . Impact 37 | . . . . . 37 . . . . . . . . Slashing 23 | . . . . . 1 12 . 1 . 9 . . . Piercing . | . . . . . . . . . . . . . . Sneak Attacks 11 | . . . . . 10 . . 1 . . . . . Combat Hostiles . | . . . . . . . . . . . . . . Follow-up Attacks . | . . . . . . . . . . . . . . Damage Inflicted 7360 | 161 722 179 106 2221 1536 496 43 85 . 1639 . 171 1 Guns 1434 | 161 530 88 106 299 . . . . . 79 . 171 . Cannons 2112 | . 192 . . 1820 57 . 43 . . . . . . Explosions 1519 | . . 91 . 102 . . . . . 1326 . . . Melee 2293 | . . . . . 1479 496 . 85 . 233 . . . Ramming 2 | . . . . . . . . . . 1 . . 1 Kinetic 1510 | 161 394 . . 605 57 . 43 . . 79 . 171 . Thermal 1600 | . 192 91 . 1317 . . . . . . . . . Explosive 1326 | . . . . . . . . . . 1326 . . . Electromagnetic 629 | . 136 88 106 299 . . . . . . . . . Impact 1385 | . . . . . 1385 . . . . . . . . Slashing 908 | . . . . . 94 496 . 85 . 233 . . . Piercing . | . . . . . . . . . . . . . . Highest Corruption 3 | . 3 3 3 1 2 2 1 1 1 . 1 1 . Average Corruption 2 | . 2 3 3 1 1 2 1 1 1 . 1 1 . Corruption Purged . | . . . . . . . . . . . . . . Corruption Blocked . | . . . . . . . . . . . . . . Effects 40 | . 5 9 14 6 5 1 . . . . . . . Message Errors 8 | . 1 2 4 . 1 . . . . . . . . Matter Fused 14 | . 1 2 5 4 2 . . . . . . . . Heat Flow Errors 5 | . . . 2 1 1 1 . . . . . . . Energy Discharges 4 | . . 1 1 1 1 . . . . . . . . Data Loss (minor) 5 | . 3 2 . . . . . . . . . . . Data Loss (major) 1 | . . 1 . . . . . . . . . . . Misfires 2 | . . . 2 . . . . . . . . . . Alerts 1 | . . 1 . . . . . . . . . . . Overload Shots . | . . . . . . . . . . . . . . Overflow Damage 818 | . . . . 10 699 59 . . . 50 . . . Projectiles 10 | . . . . 10 . . . . . . . . . Explosions 50 | . . . . . . . . . . 50 . . . Melee 758 | . . . . . 699 59 . . . . . . . Knockbacks 16 | . . . . 10 6 . . . . . . . . Impact 5 | . . . . . 5 . . . . . . . . Kinetic 8 | . . . . 7 1 . . . . . . . . Secondary 3 | . . . . 3 . . . . . . . . . Self-Inflicted Damage 137 | . . 24 . 32 . . . . . 81 . . . Shots 6 | . . 1 . 1 . . . . . 4 . . . Rammed 2 | . . . . . . . . . . 1 . . 1 Targets Rammed 2 | . . . . . . . . . . 1 . . 1 Kicked . | . . . . . . . . . . . . . . Crushed . | . . . . . . . . . . . . . . Highest Temperature 330 | . 330 90 224 243 156 140 . . . 19 . . . Average Temperature 82 | . 121 37 115 73 86 108 . . . 19 . . . Received Heat Transfer 2115 | . 225 45 18 828 . 57 81 36 . 333 75 . 417 Effects 1 | . 1 . . . . . . . . . . . . Energy Bleed 1 | . 1 . . . . . . . . . . . . Siege Activations . | . . . . . . . . . . . . . . Robots Corrupted 2 | . . . . . 2 . . . . . . . . Combat Hostiles . | . . . . . . . . . . . . . . Parts Fried 11 | . . . . 1 10 . . . . . . . . Impact Corruptions 26 | . . . . . 26 . . . . . . . . Robots Melted . | . . . . . . . . . . . . . . Combat Hostiles . | . . . . . . . . . . . . . . Parts Melted 4 | . 1 1 . 2 . . . . . . . . . Heat Transferred 2135 | . 407 . . 1728 . . . . . . . . . Parts Sabotaged . | . . . . . . . . . . . . . . Parts Stolen . | . . . . . . . . . . . . . . Parts Stripped . | . . . . . . . . . . . . . . Power Chain Reactions 2 | . . 1 . 1 . . . . . . . . . Alert | -11 -10 -10 -10 -8 -7 -6 -5 -5 -5 -4 -4 -4 -3 ------- Run | Yrd Mat Min Sub Mat Fac Fac Fac Upp Upp Fac Upp Upp Res Peak Influence 581 | 10 229 88 . 338 149 177 146 . . 581 . . 464 Initial 204 | . 6 28 . . 102 2 15 . . 119 . . 204 Average 110 | 2 77 57 . 151 84 58 25 . . 352 . . 332 Maximum Alert Level 2 | . 1 . . 1 . . . . . 2 . . 2 Low Security (%) 83 | 100 90 100 . 70 100 100 100 . . 34 . . . Level 1 12 | . 9 . . 29 . . . . . 16 . . 74 Level 2 3 | . . . . . . . . . . 48 . . 25 Level 3 . | . . . . . . . . . . . . . . Level 4 . | . . . . . . . . . . . . . . Level 5 . | . . . . . . . . . . . . . . High Security . | . . . . . . . . . . . . . . Max Security . | . . . . . . . . . . . . . . Squads Dispatched 11 | . . . . 3 1 . 2 . . 2 . . 3 Investigation 5 | . . . . 3 . . 1 . . . . . 1 Extermination 2 | . . . . . 1 . 1 . . . . . . Reinforcement 4 | . . . . . . . . . . 2 . . 2 Assault . | . . . . . . . . . . . . . . Garrison . | . . . . . . . . . . . . . . Intercept . | . . . . . . . . . . . . . . Searches Triggered . | . . . . . . . . . . . . . . Construction Impeded . | . . . . . . . . . . . . . . Haulers Reinforced 1 | . . . . . . . . . . 1 . . . Active Scanning Responses . | . . . . . . . . . . . . . . Cargo Convoy Interrupts . | . . . . . . . . . . . . . . Stealth | -11 -10 -10 -10 -8 -7 -6 -5 -5 -5 -4 -4 -4 -3 --------- Run | Yrd Mat Min Sub Mat Fac Fac Fac Upp Upp Fac Upp Upp Res Distress Signals 4 | . . . . 2 . 1 . . . 1 . . . Communications Jammed . | . . . . . . . . . . . . . . Distress Signals . | . . . . . . . . . . . . . . Times Spotted 189 | . 14 6 5 28 6 14 18 18 . 39 8 . 33 Peak Tracking Total 17 | . 4 3 2 7 2 5 11 10 . 17 4 . 16 Tactical Retreats 25 | . . . . 2 1 4 2 5 . 2 3 . 6 Traps | -11 -10 -10 -10 -8 -7 -6 -5 -5 -5 -4 -4 -4 -3 ------- Run | Yrd Mat Min Sub Mat Fac Fac Fac Upp Upp Fac Upp Upp Res Traps Triggered 6 | . 2 . . 1 2 1 . . . . . . . Indirectly . | . . . . . . . . . . . . . . Trap Hack Attempts . | . . . . . . . . . . . . . . Triggered . | . . . . . . . . . . . . . . Disarmed . | . . . . . . . . . . . . . . Reprogrammed . | . . . . . . . . . . . . . . Reused . | . . . . . . . . . . . . . . Traps Extracted . | . . . . . . . . . . . . . . Installed . | . . . . . . . . . . . . . . Triggered 2 | . . . . . . . . . . . 2 . . Machines | -11 -10 -10 -10 -8 -7 -6 -5 -5 -5 -4 -4 -4 -3 ---------- Run | Yrd Mat Min Sub Mat Fac Fac Fac Upp Upp Fac Upp Upp Res Machines Disabled 3 | . . . . 3 . . . . . . . . . Max in Single Turn 2 | . . . . 2 . . . . . . . . . Machines Repaired . | . . . . . . . . . . . . . . Machines Dismantled . | . . . . . . . . . . . . . . Machines Sabotaged . | . . . . . . . . . . . . . . Overloaded Fab Kills . | . . . . . . . . . . . . . . Hacking | -11 -10 -10 -10 -8 -7 -6 -5 -5 -5 -4 -4 -4 -3 --------- Run | Yrd Mat Min Sub Mat Fac Fac Fac Upp Upp Fac Upp Upp Res Machines Accessed 28 | . 6 . 1 4 8 4 3 . . . . . 2 Terminals 20 | . 5 . . 2 6 3 3 . . . . . 1 Fabricators . | . . . . . . . . . . . . . . Repair Stations . | . . . . . . . . . . . . . . Recycling Units 4 | . 1 . . . 2 1 . . . . . . . Scanalyzers 3 | . . . . 2 . . . . . . . . 1 Garrison Access . | . . . . . . . . . . . . . . Total Hacks 68 | . 9 . 5 17 14 10 8 . . . . . 5 Successful 29 | . 3 . 5 10 4 1 3 . . . . . 3 Failed 39 | . 6 . . 7 10 9 5 . . . . . 2 Catastrophic 14 | . 3 . . 1 4 3 2 . . . . . 1 Database Lockouts . | . . . . . . . . . . . . . . Manual 16 | . 4 . . 4 2 4 2 . . . . . . Terminals 43 | . 8 . . 8 11 6 8 . . . . . 2 Fabricators . | . . . . . . . . . . . . . . Repair Stations . | . . . . . . . . . . . . . . Recycling Units 8 | . 1 . . . 3 4 . . . . . . . Scanalyzers 12 | . . . . 9 . . . . . . . . 3 Garrison Access . | . . . . . . . . . . . . . . Terminal Hacks 14 | . 2 . 5 3 1 . 3 . . . . . . Record 7 | . . . 5 . 1 . 1 . . . . . . Branch Access Points 2 | . . . . 1 . . 1 . . . . . . Terminal Index 1 | . 1 . . . . . . . . . . . . Alert Level 1 | . . . . 1 . . . . . . . . . Unreport Threat 1 | . . . . . . . 1 . . . . . . Dispatch Records 1 | . . . . 1 . . . . . . . . . Zone Layout 1 | . 1 . . . . . . . . . . . . Fabricator Hacks . | . . . . . . . . . . . . . . Repair Station Hacks . | . . . . . . . . . . . . . . Recycling Unit Hacks 5 | . 1 . . . 3 1 . . . . . . . Report Inventory 4 | . 1 . . . 2 1 . . . . . . . Retrieve Matter 1 | . . . . . 1 . . . . . . . . Scanalyzer 10 | . . . . 7 . . . . . . . . 3 Insert Component 4 | . . . . 3 . . . . . . . . 1 Analyze 6 | . . . . 4 . . . . . . . . 2 Garrison Access Hacks . | . . . . . . . . . . . . . . Unauthorized Hacks . | . . . . . . . . . . . . . . Terminals . | . . . . . . . . . . . . . . Fabricators . | . . . . . . . . . . . . . . Repair Stations . | . . . . . . . . . . . . . . Recycling Units . | . . . . . . . . . . . . . . Scanalyzers . | . . . . . . . . . . . . . . Garrison Access . | . . . . . . . . . . . . . . Data Cores Recovered 1 | . . . . . 1 . . . . . . . . Used 1 | . . . . . 1 . . . . . . . . Hacking Detections 25 | . 5 . . 4 7 4 3 . . . . . 2 Full Trace Events 4 | . . . . 2 . . 1 . . . . . 1 Feedback Events 1 | . . . . 1 . . . . . . . . . Corruption 1 | . . . . 1 . . . . . . . . . Feedback Blocked . | . . . . . . . . . . . . . . Robot Schematics Acquired . | . . . . . . . . . . . . . . Robots Built . | . . . . . . . . . . . . . . Authchips . | . . . . . . . . . . . . . . Time . | . . . . . . . . . . . . . . Total Robot Build Rating . | . . . . . . . . . . . . . . Part Schematics Acquired 4 | . . . . 3 . . . . . . . . 1 Parts Built . | . . . . . . . . . . . . . . Authchips . | . . . . . . . . . . . . . . Time . | . . . . . . . . . . . . . . Total Part Build Rating . | . . . . . . . . . . . . . . Parts Repaired . | . . . . . . . . . . . . . . Time . | . . . . . . . . . . . . . . Parts Recycled . | . . . . . . . . . . . . . . Recycled Matter . | . . . . . . . . . . . . . . Retrieved Matter . | . . . . . . . . . . . . . . Retrieved Components . | . . . . . . . . . . . . . . Parts Scanalyzed 4 | . . . . 3 . . . . . . . . 1 Part Schematics Acquired 4 | . . . . 3 . . . . . . . . 1 Parts Damaged . | . . . . . . . . . . . . . . Bothacking | -11 -10 -10 -10 -8 -7 -6 -5 -5 -5 -4 -4 -4 -3 ------------ Run | Yrd Mat Min Sub Mat Fac Fac Fac Upp Upp Fac Upp Upp Res Used RIF Installer . | . . . . . . . . . . . . . . Robots Hacked . | . . . . . . . . . . . . . . Non-combat . | . . . . . . . . . . . . . . Combat . | . . . . . . . . . . . . . . Robot Hacks Applied . | . . . . . . . . . . . . . . Relay Couplers Released . | . . . . . . . . . . . . . . Fabnet Peak Effective % . | . . . . . . . . . . . . . . Robots Rewired . | . . . . . . . . . . . . . . Allies Hacked . | . . . . . . . . . . . . . . Hacks Repelled . | . . . . . . . . . . . . . . Allies | -11 -10 -10 -10 -8 -7 -6 -5 -5 -5 -4 -4 -4 -3 -------- Run | Yrd Mat Min Sub Mat Fac Fac Fac Upp Upp Fac Upp Upp Res Total Allies 4 | . . 4 . . . . . . . . . . . Largest Group 3 | . . 3 3 1 . . . . . . . . . Highest-Rated Group 63 | . . 63 63 16 . . . . . . . . . Highest-Rated Ally 31 | . . 31 31 16 . . . . . . . . . Total Orders . | . . . . . . . . . . . . . . Ally Attacks 39 | . . 13 22 4 . . . . . . . . . Total Damage 372 | . . 132 180 60 . . . . . . . . . Kills 3 | . . 1 2 . . . . . . . . . . Allies Corrupted . | . . . . . . . . . . . . . . Allies Melted . | . . . . . . . . . . . . . . Intel | -11 -10 -10 -10 -8 -7 -6 -5 -5 -5 -4 -4 -4 -3 ------- Run | Yrd Mat Min Sub Mat Fac Fac Fac Upp Upp Fac Upp Upp Res Robot Analysis Total . | . . . . . . . . . . . . . . Derelict Logs Recovered 7 | . . 1 2 . . . . 1 . . 2 1 . Drone Launches . | . . . . . . . . . . . . . . Drone Recoveries . | . . . . . . . . . . . . . . Exploration | -11 -10 -10 -10 -8 -7 -6 -5 -5 -5 -4 -4 -4 -3 ------------- Run | Yrd Mat Min Sub Mat Fac Fac Fac Upp Upp Fac Upp Upp Res Turns Passed 6147 | 118 788 618 761 1217 852 446 375 180 26 212 162 178 214 Spaces Moved 6571 | 50 399 348 452 573 1505 954 535 435 55 256 327 299 383 Core 964 | 6 . . . . . . . . . . 280 299 379 Treads 1962 | 44 399 348 452 573 146 . . . . . . . . Legs 4 | . . . . . . . . . . . . . 4 Wheels . | . . . . . . . . . . . . . . Hover 6 | . . . . . . . . . . 6 . . . Flight 3635 | . . . . . 1359 954 535 435 55 250 47 . . Fastest Speed 26 | 50 160 160 160 145 27 28 46 28 48 26 35 50 50 Average Speed 73 | 146 160 160 160 152 39 34 46 37 48 43 47 50 50 Slowest Speed 275 | 160 160 160 160 225 145 48 48 48 48 275 50 50 110 Overloaded Moves . | . . . . . . . . . . . . . . Propulsion Burnouts . | . . . . . . . . . . . . . . Robots Hopped 1 | . . . . . . . 1 . . . . . . Cave-ins Triggered . | . . . . . . . . . . . . . . Exploration Rate (%) 36 | 5 79 60 28 48 42 27 17 70 8 12 69 37 13 Regions Visited 13 Branch Regions 6 Pre-discovered Areas 2 | . . . 1 . . . . . . . 1 . . Known Exits Taken 6 | . . . . 1 1 1 1 1 1 . . . . Unknown Exits Taken 7 | 1 1 1 1 . . . . . . 1 1 1 . Scrap Searched 16 | . . 2 6 . . . . 4 1 . 2 1 . Spaces Dug 60 | . . 3 . . 16 1 3 . . 37 . . . Terrain Destroyed 134 | . . 16 . 21 19 1 6 . . 71 . . . Melee 17 | . . . . . 15 1 . . . 1 . . . Projectile 31 | . . 3 . 18 4 . 6 . . . . . . AOE 86 | . . 13 . 3 . . . . . 70 . . . Terrain Rammed . | . . . . . . . . . . . . . . Walls Destroyed . | . . . . . . . . . . . . . . Machines Disabled . | . . . . . . . . . . . . . . Actions | -11 -10 -10 -10 -8 -7 -6 -5 -5 -5 -4 -4 -4 -3 --------- Run | Yrd Mat Min Sub Mat Fac Fac Fac Upp Upp Fac Upp Upp Res Total 7465 | 73 476 396 476 782 1680 1055 649 450 54 331 332 314 397 Wait 376 | . 18 24 . 89 69 55 94 . . 27 . . . Move 6556 | 49 398 347 451 572 1504 953 532 434 54 255 326 298 383 Hop 1 | . . . . . . . 1 . . . . . . Pick Up 75 | 4 8 3 7 17 7 13 1 3 . 7 4 1 . Fast Attach 58 | 6 5 2 1 9 14 2 2 6 . 3 . 1 7 Attach 52 | 1 . . 1 14 6 6 5 3 . 14 1 . 1 Detach 12 | 1 . 1 . 2 1 2 . 2 . 2 . . 1 Swap 22 | 2 2 4 1 2 7 2 2 . . . . . . Drop 71 | . 7 8 7 10 21 10 2 1 . 3 1 . 1 Fire 171 | 10 38 7 8 67 5 . 10 . . 10 . 13 3 Melee 60 | . . . . . 38 12 . 1 . 9 . . . Ram 2 | . . . . . . . . . . 1 . . 1 Kick . | . . . . . . . . . . . . . . Crush . | . . . . . . . . . . . . . . Escape Stasis 8 | . . . . . 8 . . . . . . . . Rewire 1 | . . . . . . . . . . . . 1 . Trap . | . . . . . . . . . . . . . . Miscellaneous . | . . . . . . . . . . . . . . Route ------- -11/Scrapyard -10/Materials (discovered 4 exits: [*Mat x2] / [*Min x2]) -10/Mines (discovered 2 exits: [*Mat] / *Sub) -10/Subcaves -8/Materials -7/Factory (discovered 3 exits: *Fac x2 / Sto) -6/Factory -5/Factory (discovered 2 exits: *Upp x2) -5/Upper Caves -5/Upper Caves -4/Factory -4/Upper Caves -4/Upper Caves -3/Research (discovered 1 exit: Arm) History --------- Turn | Location | Event 4 | -11/Scrapyard | Discovered new exit (range 14) 119 | -11/Scrapyard | Entered Materials 215 | -10/Materials | Discovered new exit (range 10) 310 | -10/Materials | Build established: Mutant 517 | -10/Materials | Discovered new exit (range 16) 696 | -10/Materials | Discovered new exit (range 14) 855 | -10/Materials | Discovered new exit (range 6) 907 | -10/Materials | Entered Mines 907 | -10/Mines | Joined a pair of Derelicts in attacking an 0b10 outpost 1089 | -10/Mines | Assisted by bots powering up and referring to "LRC-V3" 1373 | -10/Mines | Found a hidden stash of uninstalled traps 1438 | -10/Mines | Discovered new exit (range 14) 1465 | -10/Mines | Learned Materials security intel 1478 | -10/Mines | Received a Mining Laser from a helpful Derelict 1481 | -10/Mines | Discovered new exit (range 5) 1525 | -10/Mines | Entered Subcaves 1525 | -10/Subcaves | Accompanied by 3 allies 1545 | -10/Subcaves | Learned Materials security intel 1900 | -10/Subcaves | Visited Clippyterm 1905 | -10/Subcaves | Learned location of Deep Caves (-7) 1905 | -10/Subcaves | Learned Factory stockpile data 2238 | -10/Subcaves | Discovered new exit (range 6) 2286 | -10/Subcaves | Entered Materials 2286 | -8/Materials | Accompanied by 1 ally 2286 | -8/Materials | Evolved 4 slots: Propulsion x2, Utility x2 2721 | -8/Materials | Lost 4 parts (1p2n1u) 2819 | -8/Materials | Discovered new exit (range 16) 3352 | -8/Materials | Build established: Scavenger-Mutant 3502 | -8/Materials | Identified exit to Factory 3503 | -8/Materials | Entered Factory 3503 | -7/Factory | Evolved 2 slots: Power x1, Utility x1 3504 | -7/Factory | Identified exit to Storage 4057 | -7/Factory | Build established: Scavenger-Sprinter 4167 | -7/Factory | Discovered new exit (range 12) 4308 | -7/Factory | Discovered new exit (range 8) 4311 | -7/Factory | Identified exit to Factory 4355 | -7/Factory | Entered another Factory area 4355 | -6/Factory | Evolved 2 slots: Propulsion x1, Utility x1 4451 | -6/Factory | Build established: Sprinter 4793 | -6/Factory | Discovered new exit (range 16) 4800 | -6/Factory | Identified exit to Factory 4801 | -6/Factory | Entered another Factory area 4801 | -5/Factory | Evolved 2 slots: Power x1, Propulsion x1 4996 | -5/Factory | Identified exit to Upper Caves 5104 | -5/Factory | Build established: Scout 5163 | -5/Factory | Lost 4 parts (2p1n1u) 5176 | -5/Factory | Entered Upper Caves 5236 | -5/Upper Caves | Attracted the attention of an 0b10 checkpoint 5265 | -5/Upper Caves | Learned Factory garrison access intel 5274 | -5/Upper Caves | Lost 4 parts (1p3n) 5277 | -5/Upper Caves | Encountered a Warlord checkpoint 5354 | -5/Upper Caves | Discovered new exit (range 5) 5356 | -5/Upper Caves | Identified exit to Upper Caves 5356 | -5/Upper Caves | Entered another Upper Caves area 5360 | -5/Upper Caves | Discovered new exit (range 9) 5364 | -5/Upper Caves | Identified exit to Factory 5382 | -5/Upper Caves | Entered Factory 5382 | -4/Factory | Evolved 2 slots: Propulsion x1, Utility x1 5383 | -4/Factory | Loaded intel: 4 garrison access locations 5533 | -4/Factory | Destroyed 10 combat bots 5586 | -4/Factory | Core integrity fell below 50% 5591 | -4/Factory | Discovered new exit (range 8) 5594 | -4/Factory | Entered Upper Caves 5607 | -4/Upper Caves | Spotted B-86 Titan 5649 | -4/Upper Caves | Lost 23 parts (4p9n4u6w) 5693 | -4/Upper Caves | Attracted the attention of an 0b10 checkpoint 5749 | -4/Upper Caves | Discovered new exit (range 14) 5756 | -4/Upper Caves | Entered another Upper Caves area 5811 | -4/Upper Caves | Build established: Mutant 5848 | -4/Upper Caves | Learned 8 Research zone layouts 5932 | -4/Upper Caves | Discovered new exit (range 5) 5934 | -4/Upper Caves | Entered Research 5934 | -3/Research | Evolved 2 slots: Propulsion x1, Utility x1 5935 | -3/Research | Identified exit to Armory 5994 | -3/Research | Spotted B-86 Titan 6053 | -3/Research | Lost 3 parts (1n1u1w) 6077 | -3/Research | Spotted B-86 Titan 6094 | -3/Research | Core integrity fell below 50% 6117 | -3/Research | Lost 3 parts (3n) 6143 | -3/Research | Core integrity fell below 20% 6148 | -3/Research | Destroyed by Y-72 Warden with Quantum Rifle Last Messages --------------- 06104_ Penetrated by Slug. 06119_ Biometal Leg destroyed. 06127_ Acquired Prototype Leg. 06127_ Identified Enh. Biometal Leg. 06137_ Enh. Biometal Leg severed. 06139_ Terrain Scan Processor severed. 06139_ Penetrated by Slug. 06140_ Slug penetrates Wall. 06140_ C-35 Carver destroyed. 06141_ Slug penetrates Wall. 06142_ Critical hit (Burn: +37). 06142_ Penetrated by Slug. 06143_ Slug penetrates Wall. 06143_ Penetrated by Slug. 06143_ Slug penetrates G-67 Veteran. 06143_ Penetrated by Slug. 06143_ Slug penetrates Wall. 06144_ Knocked back. 06145_ Acquired 7 matter. 06147_ Slug penetrates Wall. Map ----- +----------------------------------------------------+ | ??????????# #!! # =##### # ?????? | | ??????????# # ##" "##???### ### ?????? | | ??????????# ########## "#??????# #?# ?????? | | ??????????########??######" "#??????# #?####?????? | | ????????????????????# " ##??????# #??????????? | | ????????????????????# " #???????# #??????????? | | ???????????########## # #???????# #??????????? | | ???????????# ? # # #???#####+#####??????? | | ???????? ??# # # #???# #??????? | | ???????? ??#] # # ##### ] #??????? | | ???????? ??# # # ## S #??????? | | ???????# #?# """# + ## "" #??????? | | ??????? ?# """# " ## " #??????? | | ??????? ?# """# " ## #??????? | | ??????? ?? # # ## #??????? | | ??????? ???? # # ## #??????? | | ??????? ??####/######"### ######/#####??????? | | ???????# #??# #?# #???????? | | ???????# #??# #?# #???????? | | ???????# #??# #?# #???????? | | ???????# #??# hB #?# #???????? | | ???????# #??# ;;;####### #?# ####???????? | | ???????# #??# # c # #?# #??????????? | | ???#####+#### # # ### #??????????? | | ???# # # """Yc # g #??????????? | | ???# # # """ @/ #??????????? | | ???# # # """ # #??????????? | | ???# # #* Y # t #??????????? | | ???# # # # ########??????????? | | ???# # # !! # #?????????????????? | | ???# # # ![ # ###############???? | | ???# #]%= # ! # #???? | | ???# + / #g # #???? | | ???# # gg # #???? | | ???# += # """ # #???? | | ???# ###### """ #########+######+####### | | ???# #????# """ #??????# | | ???# #????# #??????# | | ???# #????# #??????# | | ???# #????# ] #??????# ! | | ???# #????###### ###??????# | | ???# #?????????###????????# | | ???##########????????????????????# """"T"""" | | ?????????????????????????????????# """"""""""" | | ?????????????????????????????????################# | | ?????????????????????????????????????????????# | | ?????????????????????????????????????????????# | | ???????????????????????????????????????????????? | | ??????????????????????????????????????????????? | | ?????????????????????????????????????????????? | +----------------------------------------------------+ Best States ------------- Heat Dissipation 81 Energy Generation 32 Energy Capacity 280 Matter Stores 400 Matter Capacity 400 Sight Range 22 Robot Scan Range 16 Terrain Scan Density 85 Additional Mass Support 9 Base Temperature (-) 100 Armor Coverage 150 Weapon Shielding 15 Evasion (%) 64 Melee Accuracy 6 Core Analysis 9 Recoil Reduction 4 Defensive Hacking 10 Item Schematics ----------------- Sub. Power Source | -8/Materials | Scanalyzed Imp. Signal Interpreter | -8/Materials | Scanalyzed Imp. VTOL Module | -8/Materials | Scanalyzed Hacking Suite | -3/Research | Scanalyzed Robot Schematics ------------------ None Fabricated ------------ Nothing Alien Tech Used ----------------- None Achievements -------------- None Challenges ------------ None Game ------ Seed DispersionSpreadClaymores Manual? 0 Play Time 01:33:08 Cumulative 30.6 hours Start 2024.10.17 @ 18:23:51 End 2024.10.18 @ 17:56:05 Sessions 3 Manual Loads 0 Difficulty Rogue Special Mode None Game No. 29 Rogue 29 Adventurer 0 Explorer 0 Win Type - Total 0 Types 0/0/0/0/0/0/0/0/0 Lore% 21 Gallery% 29 Achievement% 28 Wizard Run 0 Options --------- Layout 1 ASCII 0 Keyboard 0 Movement Arrows Keybinds 0 Fullscreen 2 Font 24/Terminus Map View 50x35 Zoom Use 0% Tactical HUD 1 Map Filters NONE Filters NONE Steam 1 RUN: 8ccca6c5-7fdc-4652-a9b1-55ba53b73baf